Cogmind - Beta 13 @@@ ROGUE MODE // 2024.03.31 @ 21:27:43 Player: Zerindel Result: Self-destructed Performance ------------- Evolutions (1) 500 Regions Visited (3) 600 Robots Destroyed (10) 50 Value Destroyed (258) 258 Prototype IDs (0) 0 Alien Tech Used (0) 0 Bonus (0) 0 TOTAL SCORE: 1408 Bonus ------- None Cogmind --------- Core Integrity 362/400 Matter 163/300 Energy 122/125 System Corruption 4% Temperature Cool (0) Movement Flying (40) Location -9/Mines Parts ------- > --- POWER (1) -------- Light Ion Engine > --- PROPULSION (3) --- Flight Unit > --- UTILITY (3) ------ Visual Processing Unit > --- WEAPON (2) ------- Light Assault Rifle > --- INVENTORY (5) ---- Light Nuclear Core Small Storage Unit Heavy Assault Rifle Peak State ------------ > --- POWER ------------ Light Ion Engine > --- PROPULSION ------- Flight Unit Flight Unit > --- UTILITY ---------- Visual Processing Unit Improved Sensor Array > --- WEAPON ----------- Grenade Launcher Mining Laser > --- INVENTORY -------- Light Nuclear Core Small Storage Unit Heavy Assault Rifle [Rating: 10] Favorites ----------- Power Light Ion Engine Engine Light Ion Engine Propulsion Light Treads Treads Light Treads Flight Unit Flight Unit Utility Small Storage Unit Device Structural Scanner Storage Small Storage Unit Processor Visual Processing Unit Weapon Medium Laser Energy Gun Medium Laser Ballistic Gun Light Assault Rifle Launcher Grenade Launcher Special Weapon Mining Laser Build | -11 -10 -9 -9 ------- Run | Yrd Mat Mat Min Slots Evolved 2 | . . 2 . Power . | . . . . Propulsion 1 | . . 1 . Utility 1 | . . 1 . Weapon . | . . . . Parts Attached 16 | 6 2 4 4 Power 2 | 1 . 1 . Engine 2 | 1 . 1 . Core . | . . . . Reactor . | . . . . Propulsion 4 | 2 . 2 . Treads 2 | 2 . . . Leg . | . . . . Wheel . | . . . . Hover . | . . . . Flight 2 | . . 2 . Utility 4 | 1 1 1 1 Device 2 | . 1 . 1 Storage 1 | 1 . . . Processor 1 | . . 1 . Hackware . | . . . . Protection . | . . . . Artifact . | . . . . Weapon 6 | 2 1 . 3 Energy Gun 2 | 2 . . . Energy Cannon . | . . . . Ballistic Gun 1 | . . . 1 Ballistic Cannon . | . . . . Launcher 2 | . 1 . 1 Special Weapon 1 | . . . 1 Impact Weapon . | . . . . Slashing Weapon . | . . . . Piercing Weapon . | . . . . Special Melee Weapon . | . . . . Unidentified Prototypes . | . . . . Parts Lost 5 | . 1 . 4 Power . | . . . . Propulsion 1 | . . . 1 Utility 1 | . . . 1 Weapon 3 | . 1 . 2 Highest Loss Streak 4 | . 1 . 4 To Critical Strikes . | . . . . Average Slot Usage (%) 80 | . 89 44 60 Engine 13 | . 14 11 11 Treads 21 | . 28 . . Flight 4 | . . 22 22 Device 3 | . 3 . 8 Storage 12 | . 14 11 2 Processor 1 | . . . 11 Energy Gun 20 | . 26 . . Launcher 1 | . 1 . 2 Naked Turns . | . . . . Heaviest Build 14 | 12 14 8 8 Greatest Support 40 | 40 40 8 8 Greatest Overweight (x) . | . . . . Average Overweight (x) . | . . . . Largest Inventory Capacity 8 | 8 8 8 8 Average Capacity 7 | 7 8 8 5 Most Carried 8 | 3 8 8 8 Average Carried 4 | 1 4 7 4 Final Capacity 8 | 8 8 8 5 Final Carried 8 | 2 7 8 3 Class Distribution -------------------- 100% | Mutant Dominant Class ---------------- Mutant | -10/Materials Mutant | -9/Materials Mutant | -9/Mines Resources | -11 -10 -9 -9 ----------- Run | Yrd Mat Mat Min Matter Collected 288 | 223 65 . . Remotely . | . . . . Salvage Created 302 | . 301 . 1 Parts 21 | . 21 . . Haulers Intercepted . | . . . . Recyclers Shooed 1 | . 1 . . Parts Field Recycled . | . . . . Retrieved Matter . | . . . . Parts Self-Destructed . | . . . . Prevented . | . . . . Kills | -11 -10 -9 -9 ------- Run | Yrd Mat Mat Min Combat Hostiles Destroyed 11 | . 9 . 2 Guns 7 | . 7 . . AOE 4 | . 2 . 2 Classes Destroyed 4 | . 3 . 1 Worker 1 | . 1 . . Swarmer 3 | . 3 . . Grunt 6 | . 6 . . Assembled 2 | . . . 2 Best Kill Streak 3 | . 3 . 2 Combat Bots Only 3 | . 3 . 2 Max Kills in Single Turn 2 | . 1 . 2 Gunslinging . | . . . . Exploded 2 | . 1 . 2 Melee . | . . . . Uniques/NPCs Destroyed . | . . . . Combat | -11 -10 -9 -9 -------- Run | Yrd Mat Mat Min Hostile Shots Fired 50 | . 35 6 9 Missed 8 | . 3 2 3 Damage Taken 575 | . 364 48 163 Core 130 | . 92 36 2 Absorbed by Shields . | . . . . Core Remaining (%) 81 | 100 63 . . Volleys Fired 26 | . 23 . 3 Largest 2 | . 2 . 1 Hottest 90 | . 90 . 30 Shots Fired 48 | . 45 . 3 Gun 39 | . 39 . . Cannon . | . . . . Launcher 9 | . 6 . 3 Special . | . . . . Kinetic . | . . . . Thermal 22 | . 22 . . Explosive 9 | . 6 . 3 Electromagnetic 17 | . 17 . . Robot Hit Streak 11 | . 11 . . Robot Miss Streak 2 | . 2 . 2 Penetration Max . | . . . . Secondary Targets . | . . . . Shots Hit Robots 31 | . 31 . . Core Hits 25 | . 18 . 7 Critical Kills . | . . . . Critical Parts Destroyed . | . . . . Critical Strikes 1 | . 1 . . Burn 1 | . 1 . . Melee Attacks . | . . . . Impact . | . . . . Slashing . | . . . . Piercing . | . . . . Sneak Attacks . | . . . . Combat Hostiles . | . . . . Follow-up Attacks . | . . . . Damage Inflicted 866 | . 666 . 200 Guns 332 | . 332 . . Cannons . | . . . . Explosions 534 | . 334 . 200 Melee . | . . . . Ramming . | . . . . Kinetic . | . . . . Thermal 177 | . 177 . . Explosive 534 | . 334 . 200 Electromagnetic 155 | . 155 . . Impact . | . . . . Slashing . | . . . . Piercing . | . . . . Highest Corruption 4 | . . . 4 Average Corruption 4 | . . . 4 Corruption Purged . | . . . . Corruption Blocked . | . . . . Overload Shots . | . . . . Overflow Damage 29 | . 21 . 8 Projectiles . | . . . . Explosions 29 | . 21 . 8 Melee . | . . . . Knockbacks . | . . . . Impact . | . . . . Kinetic . | . . . . Secondary . | . . . . Self-Inflicted Damage 68 | . . . 68 Shots 3 | . . . 3 Rammed . | . . . . Targets Rammed . | . . . . Kicked . | . . . . Crushed . | . . . . Highest Temperature 204 | . 204 10 19 Average Temperature 79 | . 82 10 11 Received Heat Transfer 238 | . 159 39 40 Effects 1 | . 1 . . Interference 1 | . 1 . . Siege Activations . | . . . . Robots Corrupted . | . . . . Combat Hostiles . | . . . . Parts Fried . | . . . . Impact Corruptions . | . . . . Robots Melted . | . . . . Combat Hostiles . | . . . . Parts Melted . | . . . . Heat Transferred 592 | . 592 . . Parts Sabotaged . | . . . . Parts Stolen . | . . . . Parts Stripped . | . . . . Power Chain Reactions . | . . . . Alert | -11 -10 -9 -9 ------- Run | Yrd Mat Mat Min Peak Influence 293 | . 293 198 88 Initial 123 | . . 123 76 Average 99 | . 117 147 76 Maximum Alert Level 1 | . 1 . . Low Security (%) 92 | 100 88 100 100 Level 1 7 | . 11 . . Level 2 . | . . . . Level 3 . | . . . . Level 4 . | . . . . Level 5 . | . . . . High Security . | . . . . Max Security . | . . . . Squads Dispatched 2 | . 2 . . Investigation . | . . . . Extermination . | . . . . Reinforcement 2 | . 2 . . Assault . | . . . . Garrison . | . . . . Intercept . | . . . . Searches Triggered . | . . . . Construction Impeded . | . . . . Haulers Reinforced . | . . . . Active Scanning Responses . | . . . . Cargo Convoy Interrupts . | . . . . Stealth | -11 -10 -9 -9 --------- Run | Yrd Mat Mat Min Distress Signals 3 | . 2 1 . Communications Jammed . | . . . . Distress Signals . | . . . . Times Spotted 31 | . 12 10 9 Peak Tracking Total 13 | . 5 13 9 Tactical Retreats . | . . . . Traps | -11 -10 -9 -9 ------- Run | Yrd Mat Mat Min Traps Triggered . | . . . . Indirectly . | . . . . Trap Hack Attempts . | . . . . Triggered . | . . . . Disarmed . | . . . . Reprogrammed . | . . . . Reused . | . . . . Traps Extracted . | . . . . Installed . | . . . . Triggered . | . . . . Machines | -11 -10 -9 -9 ---------- Run | Yrd Mat Mat Min Machines Disabled 1 | . 1 . . Max in Single Turn 1 | . 1 . . Machines Repaired . | . . . . Machines Dismantled . | . . . . Machines Sabotaged . | . . . . Overloaded Fab Kills . | . . . . Hacking | -11 -10 -9 -9 --------- Run | Yrd Mat Mat Min Machines Accessed 2 | . 2 . . Terminals 2 | . 2 . . Fabricators . | . . . . Repair Stations . | . . . . Recycling Units . | . . . . Scanalyzers . | . . . . Garrison Access . | . . . . Total Hacks 4 | . 4 . . Successful 3 | . 3 . . Failed 1 | . 1 . . Catastrophic . | . . . . Database Lockouts . | . . . . Manual . | . . . . Terminals 4 | . 4 . . Fabricators . | . . . . Repair Stations . | . . . . Recycling Units . | . . . . Scanalyzers . | . . . . Garrison Access . | . . . . Terminal Hacks 3 | . 3 . . Robot Analysis 1 | . 1 . . Emergency Access Points 1 | . 1 . . Dispatch Records 1 | . 1 . . Fabricator Hacks . | . . . . Repair Station Hacks . | . . . . Recycling Unit Hacks . | . . . . Scanalyzer . | . . . . Garrison Access Hacks . | . . . . Unauthorized Hacks . | . . . . Terminals . | . . . . Fabricators . | . . . . Repair Stations . | . . . . Recycling Units . | . . . . Scanalyzers . | . . . . Garrison Access . | . . . . Data Cores Recovered . | . . . . Used . | . . . . Hacking Detections 2 | . 2 . . Full Trace Events . | . . . . Feedback Events . | . . . . Feedback Blocked . | . . . . Robot Schematics Acquired . | . . . . Robots Built . | . . . . Authchips . | . . . . Time . | . . . . Total Robot Build Rating . | . . . . Part Schematics Acquired . | . . . . Parts Built . | . . . . Authchips . | . . . . Time . | . . . . Total Part Build Rating . | . . . . Parts Repaired . | . . . . Time . | . . . . Parts Recycled . | . . . . Recycled Matter . | . . . . Retrieved Matter . | . . . . Retrieved Components . | . . . . Parts Scanalyzed . | . . . . Part Schematics Acquired . | . . . . Parts Damaged . | . . . . Bothacking | -11 -10 -9 -9 ------------ Run | Yrd Mat Mat Min Used RIF Installer . | . . . . Robots Hacked . | . . . . Non-combat . | . . . . Combat . | . . . . Robot Hacks Applied . | . . . . Relay Couplers Released . | . . . . Fabnet Peak Effective % . | . . . . Robots Rewired . | . . . . Allies Hacked . | . . . . Hacks Repelled . | . . . . Allies | -11 -10 -9 -9 -------- Run | Yrd Mat Mat Min Total Allies . | . . . . Largest Group . | . . . . Highest-Rated Group . | . . . . Highest-Rated Ally . | . . . . Total Orders . | . . . . Ally Attacks . | . . . . Total Damage . | . . . . Kills . | . . . . Allies Corrupted . | . . . . Allies Melted . | . . . . Intel | -11 -10 -9 -9 ------- Run | Yrd Mat Mat Min Robot Analysis Total 1 | . 1 . . Derelict Logs Recovered . | . . . . Drone Launches . | . . . . Drone Recoveries . | . . . . Exploration | -11 -10 -9 -9 ------------- Run | Yrd Mat Mat Min Turns Passed 487 | 75 315 55 42 Spaces Moved 361 | 44 146 112 59 Core 6 | 6 . . . Treads 184 | 38 146 . . Legs . | . . . . Wheels . | . . . . Hover . | . . . . Flight 171 | . . 112 59 Fastest Speed 37 | 50 160 37 37 Average Speed 99 | 145 160 37 37 Slowest Speed 160 | 160 160 37 37 Overloaded Moves . | . . . . Propulsion Burnouts . | . . . . Robots Hopped 2 | . . 2 . Cave-ins Triggered . | . . . . Exploration Rate (%) 19 | 5 32 27 14 Regions Visited 3 Branch Regions 1 Pre-discovered Areas . | . . . . Known Exits Taken . | . . . . Unknown Exits Taken 3 | 1 1 1 . Scrap Searched . | . . . . Spaces Dug . | . . . . Terrain Destroyed 28 | . 12 . 16 Melee . | . . . . Projectile . | . . . . AOE 28 | . 12 . 16 Terrain Rammed . | . . . . Walls Destroyed . | . . . . Machines Disabled . | . . . . Actions | -11 -10 -9 -9 --------- Run | Yrd Mat Mat Min Total 439 | 54 183 125 77 Wait 12 | . 6 . 6 Move 354 | 43 145 107 59 Hop 2 | . . 2 . Pick Up 17 | 5 7 4 1 Fast Attach 4 | 3 . . 1 Attach 9 | 3 2 1 3 Detach 3 | . . 3 . Swap 3 | . . 3 . Drop 9 | . . 5 4 Fire 26 | . 23 . 3 Melee . | . . . . Ram . | . . . . Kick . | . . . . Crush . | . . . . Escape Stasis . | . . . . Rewire . | . . . . Trap . | . . . . Miscellaneous . | . . . . Route ------- -11/Scrapyard -10/Materials -9/Materials -9/Mines History --------- Turn | Location | Event 27 | -11/Scrapyard | Discovered new exit (range 13) 76 | -11/Scrapyard | Entered Materials 305 | -10/Materials | Build established: Mutant 380 | -10/Materials | Discovered new exit (range 5) 391 | -10/Materials | Entered another Materials area 391 | -9/Materials | Evolved 2 slots: Propulsion x1, Utility x1 436 | -9/Materials | Discovered new exit (range 16) 446 | -9/Materials | Entered Mines 447 | -9/Mines | Assembled infested the area 452 | -9/Mines | Assisted by a Guerilla fighting off Assembled 487 | -9/Mines | Met a Derelict bent on vengeance 488 | -9/Mines | Self-destructed Last Messages --------------- 00454_ T-07 Excavator is excavating. 00455_ Acquired Sml. Storage Unit. 00459_ T-07 Excavator is excavating. 00464_ 6E-WDE(h): "I'll hold them off! Go on ahead or try to find another way!" 00478_ The unstable cave ceiling collapses. 00478_ T-07 Excavator destroyed. 00480_ T-07 Excavator is excavating. 00482_ as-67034 destroyed. 00482_ Destroyed Asb. Hover Unit. 00482_ as-47351 destroyed. 00482_ Imp. Sensor Array destroyed. 00482_ Destroyed Imp. Sensor Array. 00484_ Grenade Launcher destroyed. 00486_ Acquired Lgt. Assault Rifle. 00487_ Flight Unit destroyed. 00487_ Mining Laser destroyed. 00487_ System corrupted by crushing effect (+1). 00487_ System corrupted by crushing effect (+3). 00487_ Knocked back. Map ----- +----------------------------------------------------+ | ?????????????????????????????????????? | | ?????????????????????????????????????? | | ?????????????????????????????????????? | | ?????????????????????????????????????? | | ?????????????????????????????????????? | | ?????????????????????????????????????? | | ?????????????????????????????????????? | | ?????????????????????????????????????? | | ?????????????????????????????????????? | | ?????????????????????????????????????? | | ?????????????????????????????????????? | | ?????????????????????????????????????? | | ?????????????????????????????????????? | | ?????????????????????????????????????? | | ???????????####??????????????????????? | | ???????## #;;####???????????????????? | | ???????# #???????????????????? | | ??????# #???????????????????? | | ?????# " #%## #???????????????????? | | ????????????# ## #???????????????????? | | ????????????# ## ###?????????????????? | | ???????????## ## ##????????????????? | | ??????????## #### ##???????????????? | | ??????????# ## #???????????????? | | ????#?##### *# #???????????????? | | ????# # # a@%# ##??????????????? | | ?????# ! = #??????????????? | | ?????# t !aaa aa ##?????????????? | | ?????# # # % ##????????????? | | ???????#### #????????????? | | ??????????## #????????????? | | ???????????# ##????????????? | | ????#####?## ###?????????????? | | ???## ### ##???????????????? | | ???# #????????????????? | | ???# #???????????????? | | ??# #???????????????? | | ??# ## ## ##???????????????? | | ??# #### ##?###????????????????? | | ??#####??## ##?????????????????????? | | ??????????#####??????????????????????? | | ?????????????????????????????????????? | | ?????????????????????????????????????? | | ?????????????????????????????????????? | | | | | | | | | | | | | +----------------------------------------------------+ Best States ------------- Heat Dissipation 28 Energy Generation 10 Energy Capacity 125 Matter Stores 300 Matter Capacity 300 Sight Range 18 Robot Scan Range 15 Terrain Scan Density 10 Evasion (%) 62 Recoil Reduction 2 Item Schematics ----------------- None Robot Schematics ------------------ None Fabricated ------------ Nothing Alien Tech Used ----------------- None Achievements -------------- None Challenges ------------ None Game ------ Seed AntimatterSurgeCanceller Manual? 0 Play Time 00:13:03 Cumulative 5.5 hours Start 2024.03.31 @ 19:52:21 End 2024.03.31 @ 21:27:43 Sessions 2 Manual Loads 0 Difficulty Rogue Special Mode None Game No. 10 Rogue 10 Adventurer 0 Explorer 0 Win Type - Total 0 Types 0/0/0/0/0/0/0/0/0 Lore% 14 Gallery% 10 Achievement% 9 Wizard Run 0 Options --------- Layout 0 ASCII 0 Keyboard 0 Movement Numpad Keybinds 0 Fullscreen 1 Font 18/SmallcapsGlow Map View 76x50 Zoom Use 9% Tactical HUD 1 Map Filters NONE Filters NONE Steam 1 RUN: 4eb6f76b-d80a-4cc9-aefe-482690d29180